Departmental family,Entity,Date Paid,Expense type,Expense Area,Supplier,Transaction Number, Amount , Description , Supplier Type ,Expenditure Type
UK Statistics Authority,Office for National Statistics,01-Nov-17,Contractors,Economic Statistics Transformation,Mango Solutions,56751,"43,329.00", Information Management Services, SME ,Programme
UK Statistics Authority,Office for National Statistics,01-Nov-17,ICT Outsourcing & Maintenance/Support,Data Science Campus,Mango Solutions,56751,"6,474.00", Information Management Services, SME ,Programme
UK Statistics Authority,Office for National Statistics,01-Nov-17,IT Contractual Services,Digital Services & Technology,Mango Solutions,56751,"32,175.00", Information Management Services, SME ,Programme
UK Statistics Authority,Office for National Statistics,01-Nov-17,Consultancy,Digital Services & Technology,E Synergy Solutions,56753,"13,860.00", Information Management Services , SME ,Programme
UK Statistics Authority,Office for National Statistics,01-Nov-17,Contractors,Digital Services & Technology,E Synergy Solutions,56753,"70,362.00", Information Management Services , SME ,Programme
UK Statistics Authority,Office for National Statistics,01-Nov-17,ICT Outsourcing & Maintenance/Support,Digital Services & Technology,E Synergy Solutions,56753,"13,530.00", Information Management Services , SME ,Programme
UK Statistics Authority,Office for National Statistics,01-Nov-17,ICT Outsourcing & Maintenance/Support,Digital Services & Technology,E Synergy Solutions,56753,"16,200.00", Information Management Services , SME ,Programme
UK Statistics Authority,Office for National Statistics,01-Nov-17,IT Contractual Services,Digital Services & Technology,E Synergy Solutions,56753,"78,732.00", Information Management Services , SME ,Programme
UK Statistics Authority,Office for National Statistics,01-Nov-17,IT Contractual Services,Digital Services & Technology,E Synergy Solutions,56753,"15,120.00", Information Management Services , SME ,Programme
UK Statistics Authority,Office for National Statistics,01-Nov-17,Consultancy,"Finance, Audit & Business Development",Certus Solutions Consulting Services Ltd,56755,"48,963.60", Information Management Services, SME ,Programme
UK Statistics Authority,Office for National Statistics,01-Nov-17,ICT Outsourcing & Maintenance/Support,Digital Services & Technology,Automated Intelligence Ltd,56756,"50,985.00", Information Management Services, SME ,Programme
UK Statistics Authority,Office for National Statistics,01-Nov-17,Contractors,Public Policy Analysis,NatCen Social Research,56757,"21,638.96", Statistical Services, Large ,Programme
UK Statistics Authority,Office for National Statistics,01-Nov-17,Non IT Contractual Services,"Methods, Data & Research",NatCen Social Research,56757,"28,688.98", Statistical Services, Large ,Programme
UK Statistics Authority,Office for National Statistics,01-Nov-17,Surveys,Data Collection,NatCen Social Research,56757,"240,373.68", Statistical Services, Large ,Programme
UK Statistics Authority,Office for National Statistics,01-Nov-17,Surveys,"Methods, Data & Research",NatCen Social Research,56757,"15,557.30", Statistical Services, Large ,Programme
UK Statistics Authority,Office for National Statistics,01-Nov-17,Surveys,Data Collection,Park Retail Ltd,56758,"45,666.44", Social Surveys Incentive Vouchers, Large ,Programme
UK Statistics Authority,Office for National Statistics,01-Nov-17,Facilities Management Contract Payments,"Finance, Audit & Business Development",Vinci Construction UK Limited,56759,"394,897.42", Faciliites Management , Large ,Programme
UK Statistics Authority,Office for National Statistics,01-Nov-17,Major Works Over 25K,Business Services & Development,Vinci Construction UK Limited,56759,"13,447.54", Major Works Newport Cladding, Large ,Programme
UK Statistics Authority,Office for National Statistics,01-Nov-17,Major Works Over 25K,Business Services & Development,Vinci Construction UK Limited,56759,"71,666.70", Major Works Newport , Large ,Programme
UK Statistics Authority,Office for National Statistics,01-Nov-17,Major Works Over 25K,Business Services & Development,Vinci Construction UK Limited,56759,"3,118.70", Major Works Titchfield, Large ,Programme
UK Statistics Authority,Office for National Statistics,01-Nov-17,Miscellaneous Minor Works,Digital Services & Technology,Vinci Construction UK Limited,56759,"1,030.23", Minor Works Drummond Gate, Large ,Programme
UK Statistics Authority,Office for National Statistics,01-Nov-17,Contractors,Digital Services & Technology,Empiric Solutions Limited,56760,"14,880.00", Information Management Services , Large ,Programme
UK Statistics Authority,Office for National Statistics,01-Nov-17,IT Contractual Services,Digital Services & Technology,Empiric Solutions Limited,56760,"13,800.00", Information Management Services , Large ,Programme
UK Statistics Authority,Office for National Statistics,01-Nov-17,Drummond Gate Business Rates,Business Services & Development,City of Westminster,56764,"247,076.00", Drummond Gate Rates, Large ,Programme
UK Statistics Authority,Office for National Statistics,01-Nov-17,ICT Outsourcing & Maintenance/Support,Digital Services & Technology,SCC,56765,325.15, Information Management Services, Large ,Programme
UK Statistics Authority,Office for National Statistics,01-Nov-17,IT Purchases > 2K,Digital Services & Technology,SCC,56765,"59,517.85", Information Management Services, Large ,Programme
UK Statistics Authority,Office for National Statistics,01-Nov-17,Other ICT Costs,Digital Services & Technology,SCC,56765,434.37, Information Management Services, Large ,Programme
UK Statistics Authority,Office for National Statistics,01-Nov-17,Surveys,National Accounts And Economic Statistics,University of Durham,56767,"338,552.40", Statistical Services, Large ,Programme
UK Statistics Authority,Office for National Statistics,01-Nov-17,Telecommunications,Digital Services & Technology,BT Global Services,56769,"39,903.50", Information Management Services, Large ,Programme
UK Statistics Authority,Office for National Statistics,01-Nov-17,ICT Outsourcing & Maintenance/Support,Digital Services & Technology,BT Global Services,56770,"186,948.73", Information Management Services, Large ,Programme
UK Statistics Authority,Office for National Statistics,01-Nov-17,Telecommunications,Data Collection,BT Global Services,56771,"4,479.78", Information Management Services, Large ,Programme
UK Statistics Authority,Office for National Statistics,01-Nov-17,Telecommunications,Digital Services & Technology,BT Global Services,56771,"25,412.89", Information Management Services, Large ,Programme
UK Statistics Authority,Office for National Statistics,01-Nov-17,Consultancy,Digital Services & Technology,Methods Professional Services,56773,"11,826.00", Information Management Services, SME ,Programme
UK Statistics Authority,Office for National Statistics,01-Nov-17,Contractors,Business Services & Development,Methods Professional Services,56773,"12,497.94", Information Management Services, SME ,Programme
UK Statistics Authority,Office for National Statistics,01-Nov-17,Contractors,Census,Methods Professional Services,56773,"7,358.40", Information Management Services, SME ,Programme
UK Statistics Authority,Office for National Statistics,01-Nov-17,Travel & Subsistence,"Finance, Audit & Business Development",Redfern Travel,56776,"42,973.90", Travel and Accommodation Booking Service , SME ,Programme
UK Statistics Authority,Office for National Statistics,01-Nov-17,ICT Outsourcing & Maintenance/Support,Digital Services & Technology,Equiniti Limited,56777,"10,546.12", Information Management Services, Large ,Programme
UK Statistics Authority,Office for National Statistics,01-Nov-17,ICT Outsourcing & Maintenance/Support,Digital Services & Technology,Equiniti Limited,56777,"36,666.68", Information Management Services, Large ,Programme
UK Statistics Authority,Office for National Statistics,01-Nov-17,ICT Outsourcing & Maintenance/Support,"Finance, Audit & Business Development",Phoenix Software Ltd,56778,"138,188.88", Software Licenses, SME ,Programme
UK Statistics Authority,Office for National Statistics,01-Nov-17,ICT Outsourcing & Maintenance/Support,Public Policy Analysis,Software Box Ltd,56779,"37,326.77"," Licenses, Support and Maintenance", SME ,Programme
UK Statistics Authority,Office for National Statistics,01-Nov-17,Other ICT Costs,Digital Services & Technology,Stone Computers,56780,"29,760.00", Computer Monitors, Large ,Programme
UK Statistics Authority,Office for National Statistics,01-Nov-17,Consultancy,Business Services & Development,Bramble.CC,56783,"82,953.60", Census Information Management Services, SME ,Programme
UK Statistics Authority,Office for National Statistics,01-Nov-17,Consultancy,Census,Bramble.CC,56783,"157,375.20", Census Information Management Services, SME ,Programme
UK Statistics Authority,Office for National Statistics,01-Nov-17,Postage,Data Collection,UK Mail,56784,"34,153.97", Outgoing Postagae, Large ,Programme
UK Statistics Authority,Office for National Statistics,01-Nov-17,Surveys,Data Collection,Ipsos MORI,56786,"64,699.62", Census Information Management Services, Large ,Programme
UK Statistics Authority,Office for National Statistics,01-Nov-17,Surveys,Economic Statistics Transformation,Ipsos MORI,56786,"41,650.38", Census Information Management Services, Large ,Programme
UK Statistics Authority,Office for National Statistics,01-Nov-17,Surveys,National Accounts And Economic Statistics,TNS UK Ltd,56787,"3,326.40", Statistical Services , Large ,Programme
UK Statistics Authority,Office for National Statistics,01-Nov-17,Surveys,National Accounts And Economic Statistics,TNS UK Ltd,56787,"370,329.60", Statistical Services , Large ,Programme
UK Statistics Authority,Office for National Statistics,01-Nov-17,Furniture < 2K Per Item,Business Services & Development,The Senator Group,56788,"3,220.80"," Minor Works, Furniture", Large ,Programme
UK Statistics Authority,Office for National Statistics,01-Nov-17,ICT Outsourcing & Maintenance/Support,Data Science Campus,The Senator Group,56788,"9,334.20"," Minor Works, Furniture", Large ,Programme
UK Statistics Authority,Office for National Statistics,01-Nov-17,Miscellaneous Minor Works,Data Collection,The Senator Group,56788,246.48," Minor Works, Furniture", Large ,Programme
UK Statistics Authority,Office for National Statistics,01-Nov-17,Miscellaneous Minor Works,Digital Services & Technology,The Senator Group,56788,763.73," Minor Works, Furniture", Large ,Programme
UK Statistics Authority,Office for National Statistics,01-Nov-17,Office Furniture,Business Services & Development,The Senator Group,56788,"12,852.59"," Minor Works, Furniture", Large ,Programme
UK Statistics Authority,Office for National Statistics,01-Nov-17,ICT Outsourcing & Maintenance/Support,Digital Services & Technology,The Sensible Code Company,56789,"51,011.60", Information Managemdent Services, SME ,Programme
UK Statistics Authority,Office for National Statistics,01-Nov-17,ICT Outsourcing & Maintenance/Support,Digital Services & Technology,Methods Digital Ltd,56790,"7,650.00", Information Management Services, Large ,Programme
UK Statistics Authority,Office for National Statistics,01-Nov-17,IT Contractual Services,Digital Services & Technology,Methods Digital Ltd,56790,"184,950.00", Information Management Services, Large ,Programme
UK Statistics Authority,Office for National Statistics,01-Nov-17,IT Contractual Services,Digital Services & Technology,Methods Digital Ltd,56790,"67,950.00", Information Management Services, Large ,Programme
UK Statistics Authority,Office for National Statistics,01-Nov-17,IT Contractual Services,Digital Services & Technology,Methods Digital Ltd,56790,"14,400.00", Information Management Services, Large ,Programme
UK Statistics Authority,Office for National Statistics,01-Nov-17,IT Contractual Services,Digital Services & Technology,Methods Digital Ltd,56790,"19,440.00", Information Management Services, Large ,Programme
UK Statistics Authority,Office for National Statistics,01-Nov-17,IT Contractual Services,Digital Services & Technology,Methods Digital Ltd,56790,"16,200.00", Information Management Services, Large ,Programme
UK Statistics Authority,Office for National Statistics,01-Nov-17,IT Contractual Services,Digital Services & Technology,Methods Digital Ltd,56790,"33,060.00", Information Management Services, Large ,Programme
UK Statistics Authority,Office for National Statistics,01-Nov-17,Consultancy,Digital Services & Technology,Certes Computing Ltd,56791,"26,728.74", Information Management Services, SME ,Programme
UK Statistics Authority,Office for National Statistics,01-Nov-17,Contractors,Census,Certes Computing Ltd,56791,"5,738.88", Information Management Services, SME ,Programme
UK Statistics Authority,Office for National Statistics,01-Nov-17,Contractors,Census,Certes Computing Ltd,56791,"16,102.94", Information Management Services, SME ,Programme
UK Statistics Authority,Office for National Statistics,01-Nov-17,IT Contractual Services,Digital Services & Technology,Certes Computing Ltd,56791,"9,756.00", Information Management Services, SME ,Programme
UK Statistics Authority,Office for National Statistics,01-Nov-17,Consultancy,Digital Services & Technology,LA International,56792,"8,692.85", Information Management Services, SME ,Programme
UK Statistics Authority,Office for National Statistics,01-Nov-17,Contractors,Business Services & Development,LA International,56792,"17,609.50", Information Management Services, SME ,Programme
UK Statistics Authority,Office for National Statistics,01-Nov-17,Contractors,Digital Services & Technology,LA International,56792,"19,635.06", Information Management Services, SME ,Programme
UK Statistics Authority,Office for National Statistics,01-Nov-17,Contractors,Digital Services & Technology,LA International,56792,"13,598.62", Information Management Services, SME ,Programme
UK Statistics Authority,Office for National Statistics,01-Nov-17,IT Contractual Services,Digital Services & Technology,LA International,56792,"4,729.92", Information Management Services, SME ,Programme
UK Statistics Authority,Office for National Statistics,01-Nov-17,Consultancy,Census,Deloitte,56796,"39,000.00", Census Information Management , SME ,Programme
UK Statistics Authority,Office for National Statistics,01-Nov-17,ICT Outsourcing & Maintenance/Support,Digital Services & Technology,QA Ltd,56797,"58,770.00", Information Management Services, Large ,Programme
UK Statistics Authority,Office for National Statistics,01-Nov-17,IT Contractual Services,Digital Services & Technology,QA Ltd,56797,"206,310.00", Information Management Services, Large ,Programme
UK Statistics Authority,Office for National Statistics,01-Nov-17,Non IT Contractual Services,Census,Pinsent Masons,56798,"62,497.80", Census Legal Services, Large ,Programme
UK Statistics Authority,Office for National Statistics,01-Nov-17,Major Works Over 25K,Business Services & Development,Paramount Office Interiors Ltd,56799,"30,304.13", Major Works Titchfield, SME ,Programme
UK Statistics Authority,Office for National Statistics,01-Nov-17,Consultancy,Digital Services & Technology,Parity Resources Limited,56802,"24,069.89", Information Management Services, Large ,Programme
UK Statistics Authority,Office for National Statistics,01-Nov-17,Consultancy,Digital Services & Technology,Parity Resources Limited,56802,"15,888.82", Information Management Services, Large ,Programme
UK Statistics Authority,Office for National Statistics,01-Nov-17,Contractors,Business Services & Development,Parity Resources Limited,56802,"1,922.40", Information Management Services, Large ,Programme
UK Statistics Authority,Office for National Statistics,01-Nov-17,Contractors,Business Services & Development,Parity Resources Limited,56802,"31,655.52", Information Management Services, Large ,Programme
UK Statistics Authority,Office for National Statistics,01-Nov-17,Contractors,Business Services & Development,Parity Resources Limited,56802,"7,753.68", Information Management Services, Large ,Programme
UK Statistics Authority,Office for National Statistics,01-Nov-17,Contractors,Census,Parity Resources Limited,56802,"2,178.72", Information Management Services, Large ,Programme
UK Statistics Authority,Office for National Statistics,01-Nov-17,Contractors,Census,Parity Resources Limited,56802,"28,579.68", Information Management Services, Large ,Programme
UK Statistics Authority,Office for National Statistics,01-Nov-17,Contractors,Digital Services & Technology,Parity Resources Limited,56802,"31,718.23", Information Management Services, Large ,Programme
UK Statistics Authority,Office for National Statistics,01-Nov-17,Contractors,Digital Services & Technology,Parity Resources Limited,56802,"22,287.26", Information Management Services, Large ,Programme
UK Statistics Authority,Office for National Statistics,01-Nov-17,Contractors,Economic Statistics Transformation,Parity Resources Limited,56802,"2,242.80", Information Management Services, Large ,Programme
UK Statistics Authority,Office for National Statistics,01-Nov-17,Contractors,Economic Statistics Transformation,Parity Resources Limited,56802,"7,176.96", Information Management Services, Large ,Programme
UK Statistics Authority,Office for National Statistics,01-Nov-17,Contractors,"Finance, Audit & Business Development",Parity Resources Limited,56802,"15,507.36", Information Management Services, Large ,Programme
UK Statistics Authority,Office for National Statistics,01-Nov-17,ICT Outsourcing & Maintenance/Support,Digital Services & Technology,Parity Resources Limited,56802,"13,072.32", Information Management Services, Large ,Programme
UK Statistics Authority,Office for National Statistics,01-Nov-17,IT Contractual Services,Digital Services & Technology,Parity Resources Limited,56802,"22,375.75", Information Management Services, Large ,Programme
UK Statistics Authority,Office for National Statistics,01-Nov-17,Short-Term Contract & Agency Staff Costs,Business Services & Development,Parity Resources Limited,56802,"3,308.65", Information Management Services, Large ,Programme
UK Statistics Authority,Office for National Statistics,01-Nov-17,Short-Term Contract & Agency Staff Costs,Census,Parity Resources Limited,56802,"3,644.57", Information Management Services, Large ,Programme
UK Statistics Authority,Office for National Statistics,01-Nov-17,Short-Term Contract & Agency Staff Costs,Census,Parity Resources Limited,56802,"6,090.00", Information Management Services, Large ,Programme
UK Statistics Authority,Office for National Statistics,01-Nov-17,Short-Term Contract & Agency Staff Costs,Communications,Parity Resources Limited,56802,"1,295.76", Information Management Services, Large ,Programme
UK Statistics Authority,Office for National Statistics,01-Nov-17,Short-Term Contract & Agency Staff Costs,Data Collection,Parity Resources Limited,56802,"3,224.50", Information Management Services, Large ,Programme
UK Statistics Authority,Office for National Statistics,01-Nov-17,Short-Term Contract & Agency Staff Costs,Data Collection,Parity Resources Limited,56802,"4,575.10", Information Management Services, Large ,Programme
UK Statistics Authority,Office for National Statistics,01-Nov-17,Short-Term Contract & Agency Staff Costs,Data Collection,Parity Resources Limited,56802,"5,229.17", Information Management Services, Large ,Programme
UK Statistics Authority,Office for National Statistics,01-Nov-17,Short-Term Contract & Agency Staff Costs,National Accounts And Economic Statistics,Parity Resources Limited,56802,"3,086.21", Information Management Services, Large ,Programme
UK Statistics Authority,Office for National Statistics,01-Nov-17,Travel & Subsistence,Business Services & Development,Parity Resources Limited,56802,14.04, Information Management Services, Large ,Programme
UK Statistics Authority,Office for National Statistics,01-Nov-17,Surveys,Economic Statistics Transformation,Equifax LTD,56815,"122,640.00", Information Managemdent Services, Large ,Programme
UK Statistics Authority,Office for National Statistics,02-Nov-17,Major Works Over 25K,Business Services & Development,Hawkings Cladding Ltd,56821,"202,265.99", Major Work Newport Cladding, SME ,Programme
UK Statistics Authority,Office for National Statistics,03-Nov-17,ICT Software,Digital Services & Technology,Pluralsight,30000616,"33,516.79", Information Management Services , Large ,Programme
UK Statistics Authority,Office for National Statistics,06-Nov-17,Contractors,Business Services & Development,Certes Computing Ltd,57605,"5,623.20", Information Management Services, SME ,Programme
UK Statistics Authority,Office for National Statistics,06-Nov-17,Contractors,Census,Certes Computing Ltd,57605,"13,754.60", Information Management Services, SME ,Programme
UK Statistics Authority,Office for National Statistics,06-Nov-17,Contractors,Census,Certes Computing Ltd,57605,"10,863.12", Information Management Services, SME ,Programme
UK Statistics Authority,Office for National Statistics,07-Nov-17,Contractors,Digital Services & Technology,Certes Computing Ltd,57624,"19,769.28", Information Management Services, SME ,Programme
UK Statistics Authority,Office for National Statistics,07-Nov-17,Contractors,Digital Services & Technology,Certes Computing Ltd,57624,"34,335.60", Information Management Services, SME ,Programme
UK Statistics Authority,Office for National Statistics,07-Nov-17,PC Purchases < 2K Per Item,Digital Services & Technology,SCC,57636,"379,969.80", Information Management Services, Large ,Programme
UK Statistics Authority,Office for National Statistics,08-Nov-17,ICT Outsourcing & Maintenance/Support,Digital Services & Technology,Mastek,58177,"104,190.00", Information Managemdent Services, Large ,Programme
UK Statistics Authority,Office for National Statistics,08-Nov-17,Travel & Subsistence,"Finance, Audit & Business Development",Redfern Travel,58192,"47,256.13", Travel and Accommodation Booking Service , SME ,Programme
UK Statistics Authority,Office for National Statistics,08-Nov-17,Consultancy,Census,Deloitte,58199,"35,508.00", Census Information Management Services, SME ,Programme
UK Statistics Authority,Office for National Statistics,08-Nov-17,ICT Software,Digital Services & Technology,Computacenter (UK) Limited,58201,"203,099.04", Information Management Services, Large ,Programme
UK Statistics Authority,Office for National Statistics,08-Nov-17,Childcare Services,"Finance, Audit & Business Development",Computershare Voucher Services,58202,"39,567.50", Childcare Vouchers , Large ,Programme
UK Statistics Authority,Office for National Statistics,08-Nov-17,ICT Outsourcing & Maintenance/Support,Digital Services & Technology,Amazon Web Services Inc,30000620,"39,393.89", Information Management Services , Large ,Programme
UK Statistics Authority,Office for National Statistics,09-Nov-17,Postage,Data Collection,UK Mail,58217,"32,782.96", Outgoing Postagae, Large ,Programme
UK Statistics Authority,Office for National Statistics,09-Nov-17,Procurement Card,"Finance, Audit & Business Development",Royal Bank of Scotland,58221,"50,464.37", Multiple Procurement Card Purchases  , Large ,Programme
UK Statistics Authority,Office for National Statistics,09-Nov-17,Stationery,"Finance, Audit & Business Development",Royal Bank of Scotland,58221,"7,002.71", Multiple Procurement Card Purchases - Stationery, Large ,Programme
UK Statistics Authority,Office for National Statistics,09-Nov-17,Consultancy,Digital Services & Technology,Parity Resources Limited,58223,"7,689.60", Information Management Services, Large ,Programme
UK Statistics Authority,Office for National Statistics,09-Nov-17,Consultancy,Digital Services & Technology,Parity Resources Limited,58223,"7,176.96", Information Management Services, Large ,Programme
UK Statistics Authority,Office for National Statistics,09-Nov-17,Contractors,Business Services & Development,Parity Resources Limited,58223,"14,097.60", Information Management Services, Large ,Programme
UK Statistics Authority,Office for National Statistics,09-Nov-17,Contractors,Business Services & Development,Parity Resources Limited,58223,"12,816.00", Information Management Services, Large ,Programme
UK Statistics Authority,Office for National Statistics,09-Nov-17,Contractors,Census,Parity Resources Limited,58223,"27,554.40", Census Information Management Services, Large ,Programme
UK Statistics Authority,Office for National Statistics,09-Nov-17,Contractors,Digital Services & Technology,Parity Resources Limited,58223,"43,202.76", Information Management Services, Large ,Programme
UK Statistics Authority,Office for National Statistics,09-Nov-17,Contractors,Digital Services & Technology,Parity Resources Limited,58223,"10,252.80", Information Management Services, Large ,Programme
UK Statistics Authority,Office for National Statistics,09-Nov-17,ICT Outsourcing & Maintenance/Support,Digital Services & Technology,Parity Resources Limited,58223,"10,348.92", Information Management Services, Large ,Programme
UK Statistics Authority,Office for National Statistics,09-Nov-17,IT Contractual Services,Digital Services & Technology,Parity Resources Limited,58223,"10,252.80", Information Management Services, Large ,Programme
UK Statistics Authority,Office for National Statistics,09-Nov-17,IT Contractual Services,Digital Services & Technology,Parity Resources Limited,58223,"6,151.68", Information Management Services, Large ,Programme
UK Statistics Authority,Office for National Statistics,09-Nov-17,Short-Term Contract & Agency Staff Costs,Business Services & Development,Parity Resources Limited,58223,"1,963.07", Information Management Services, Large ,Programme
UK Statistics Authority,Office for National Statistics,09-Nov-17,Short-Term Contract & Agency Staff Costs,Business Services & Development,Parity Resources Limited,58223,"3,825.50", Information Management Services, Large ,Programme
UK Statistics Authority,Office for National Statistics,09-Nov-17,Short-Term Contract & Agency Staff Costs,Census,Parity Resources Limited,58223,"3,893.66", Census  Information Management Services, Large ,Programme
UK Statistics Authority,Office for National Statistics,09-Nov-17,Short-Term Contract & Agency Staff Costs,Communications,Parity Resources Limited,58223,"12,033.36", Information Management Services, Large ,Programme
UK Statistics Authority,Office for National Statistics,09-Nov-17,Short-Term Contract & Agency Staff Costs,Data Collection,Parity Resources Limited,58223,"2,798.98", Information Management Services, Large ,Programme
UK Statistics Authority,Office for National Statistics,09-Nov-17,Short-Term Contract & Agency Staff Costs,Data Collection,Parity Resources Limited,58223,"4,945.49", Information Management Services, Large ,Programme
UK Statistics Authority,Office for National Statistics,10-Nov-17,Facilities Management Contract Payments,"Finance, Audit & Business Development",Vinci Construction UK Limited,58343,"118,931.81", Faciliites Management , Large ,Programme
UK Statistics Authority,Office for National Statistics,10-Nov-17,Postage,Data Collection,Royal Mail Direct,30000622,"30,400.00", Outgoing Postagae, Large ,Programme
UK Statistics Authority,Office for National Statistics,13-Nov-17,Contractors,Digital Services & Technology,LA International,58663,"9,459.84", Information Management Services, SME ,Programme
UK Statistics Authority,Office for National Statistics,13-Nov-17,Contractors,Digital Services & Technology,LA International,58663,"12,655.90", Information Management Services, SME ,Programme
UK Statistics Authority,Office for National Statistics,13-Nov-17,IT Contractual Services,Digital Services & Technology,LA International,58663,"11,249.57", Information Management Services, SME ,Programme
UK Statistics Authority,Office for National Statistics,14-Nov-17,Contractors,Economic Statistics Transformation,Mango Solutions,58905,"9,282.00", Information Management Services, SME ,Programme
UK Statistics Authority,Office for National Statistics,14-Nov-17,Contractors,Economic Statistics Transformation,Mango Solutions,58905,"38,259.00", Information Management Services, SME ,Programme
UK Statistics Authority,Office for National Statistics,15-Nov-17,Travel & Subsistence,"Finance, Audit & Business Development",Redfern Travel,58931,"55,369.87", Travel and Accommodation Booking Service , SME ,Programme
UK Statistics Authority,Office for National Statistics,16-Nov-17,Consultancy,Digital Services & Technology,Parity Resources Limited,59478,"2,563.20", Information Management Services, Large ,Programme
UK Statistics Authority,Office for National Statistics,16-Nov-17,Contractors,Census,Parity Resources Limited,59478,"2,178.72", Information Management Services, Large ,Programme
UK Statistics Authority,Office for National Statistics,16-Nov-17,Contractors,Communications,Parity Resources Limited,59478,"8,971.20", Information Management Services, Large ,Programme
UK Statistics Authority,Office for National Statistics,16-Nov-17,Contractors,Digital Services & Technology,Parity Resources Limited,59478,"1,807.08", Information Management Services, Large ,Programme
UK Statistics Authority,Office for National Statistics,16-Nov-17,IT Contractual Services,Digital Services & Technology,Parity Resources Limited,59478,"2,563.20", Information Management Services, Large ,Programme
UK Statistics Authority,Office for National Statistics,16-Nov-17,Short-Term Contract & Agency Staff Costs,Census,Parity Resources Limited,59478,"12,175.20", Information Management Services, Large ,Programme
UK Statistics Authority,Office for National Statistics,17-Nov-17,Contractors,Digital Services & Technology,E Synergy Solutions,59490,"135,984.00", Information Management Services , SME ,Programme
UK Statistics Authority,Office for National Statistics,17-Nov-17,ICT Outsourcing & Maintenance/Support,Digital Services & Technology,E Synergy Solutions,59490,"12,540.00", Information Management Services , SME ,Programme
UK Statistics Authority,Office for National Statistics,17-Nov-17,IT Contractual Services,Digital Services & Technology,E Synergy Solutions,59490,"12,564.00", Information Management Services , SME ,Programme
UK Statistics Authority,Office for National Statistics,17-Nov-17,ICT Outsourcing & Maintenance/Support,Digital Services & Technology,RSM Partners Ltd,59492,"100,305.76", Information Management Services , SME ,Programme
UK Statistics Authority,Office for National Statistics,17-Nov-17,Newport Electricity,Business Services & Development,EDF Energy,30000625,"25,140.06", Newport Electricity Charges  , Large ,Programme
UK Statistics Authority,Office for National Statistics,17-Nov-17,Titchfield Electricity,Business Services & Development,EDF Energy,30000626,"26,536.38", Titchfield Electricity Charges  , Large ,Programme
UK Statistics Authority,Office for National Statistics,20-Nov-17,ICT Outsourcing & Maintenance/Support,Digital Services & Technology,Automated Intelligence Ltd,59952,"63,360.00", Information Management Services, SME ,Programme
UK Statistics Authority,Office for National Statistics,20-Nov-17,ICT Outsourcing & Maintenance/Support,Digital Services & Technology,RSM Partners Ltd,59953,"49,227.77", Information Management Services , SME ,Programme
UK Statistics Authority,Office for National Statistics,20-Nov-17,ICT Outsourcing & Maintenance/Support,Digital Services & Technology,Equiniti Limited,59957,"47,212.80", Information Management Services, Large ,Programme
UK Statistics Authority,Office for National Statistics,20-Nov-17,Surveys,Public Policy Analysis,TNS UK Ltd,59958,"176,784.00", Statistical Services , Large ,Programme
UK Statistics Authority,Office for National Statistics,21-Nov-17,ICT Outsourcing & Maintenance/Support,Digital Services & Technology,QA Ltd,60533,"279,810.00", Information Management Services, Large ,Programme
UK Statistics Authority,Office for National Statistics,22-Nov-17,Travel & Subsistence,"Finance, Audit & Business Development",Redfern Travel,60541,"53,087.10", Travel and Accommodation Booking Service , SME ,Programme
UK Statistics Authority,Office for National Statistics,22-Nov-17,Non IT Contractual Services,Census,Pinsent Masons,60544,"73,367.40", Census Information Management Services , Large ,Programme
UK Statistics Authority,Office for National Statistics,23-Nov-17,Contractors,Digital Services & Technology,LA International,60920,"2,875.50", Information Management Services, SME ,Programme
UK Statistics Authority,Office for National Statistics,23-Nov-17,Contractors,Economic Statistics Transformation,LA International,60920,"13,358.93", Information Management Services, SME ,Programme
UK Statistics Authority,Office for National Statistics,23-Nov-17,Contractors,"Methods, Data & Research",LA International,60920,"14,097.12", Information Management Services, SME ,Programme
UK Statistics Authority,Office for National Statistics,23-Nov-17,ICT Outsourcing & Maintenance/Support,Digital Services & Technology,LA International,60920,180.48, Information Management Services, SME ,Programme
UK Statistics Authority,Office for National Statistics,23-Nov-17,IT Contractual Services,Digital Services & Technology,QA Ltd,60923,"81,600.00", Information Management Services, Large ,Programme
UK Statistics Authority,Office for National Statistics,24-Nov-17,Telecommunications,Digital Services & Technology,Vodafone Corporate Ltd,60930,"29,104.90", Information Management Services, Large ,Programme
UK Statistics Authority,Office for National Statistics,24-Nov-17,Training & Development,Digital Services & Technology,Cloudera Inc,60932,"35,280.00", Information Managemdent Services, Large ,Programme
UK Statistics Authority,Office for National Statistics,24-Nov-17,Surveys,Data Collection,Park Retail Ltd,60934,"31,177.81", Social Surveys Incentive Vouchers, Large ,Programme
UK Statistics Authority,Office for National Statistics,27-Nov-17,ICT Outsourcing & Maintenance/Support,Digital Services & Technology,Crown Hosting Data Centres Limited,61304,"13,955.29", Information Management Services, SME ,Programme
UK Statistics Authority,Office for National Statistics,27-Nov-17,ICT Outsourcing & Maintenance/Support,Digital Services & Technology,Crown Hosting Data Centres Limited,61304,"19,090.70", Information Management Services, SME ,Programme
UK Statistics Authority,Office for National Statistics,27-Nov-17,IT Contractual Services,Digital Services & Technology,Methods Digital Ltd,61307,"15,300.00", Information Managemdent Services, Large ,Programme
UK Statistics Authority,Office for National Statistics,27-Nov-17,IT Contractual Services,Digital Services & Technology,Methods Digital Ltd,61307,"18,000.00", Information Managemdent Services, Large ,Programme
UK Statistics Authority,Office for National Statistics,27-Nov-17,IT Contractual Services,Digital Services & Technology,Methods Digital Ltd,61307,"18,900.00", Information Managemdent Services, Large ,Programme
UK Statistics Authority,Office for National Statistics,28-Nov-17,Consultancy,"Finance, Audit & Business Development",Certus Solutions Consulting Services Ltd,61605,"58,725.89", Information Management Services, SME ,Programme
UK Statistics Authority,Office for National Statistics,28-Nov-17,IT Purchases > 2K,Digital Services & Technology,SCC,61612,"268,500.44", Information Management Services, Large ,Programme
UK Statistics Authority,Office for National Statistics,28-Nov-17,IT Purchases > 2K,Digital Services & Technology,SCC,61612,"43,803.20", Information Management Services, Large ,Programme
UK Statistics Authority,Office for National Statistics,28-Nov-17,Telecommunications,Digital Services & Technology,BT Global Services,61613,"42,724.84", Information Management Services, Large ,Programme
UK Statistics Authority,Office for National Statistics,28-Nov-17,ICT Outsourcing & Maintenance/Support,Digital Services & Technology,Methods Digital Ltd,61615,"21,600.00", Information Management Services , Large ,Programme
UK Statistics Authority,Office for National Statistics,28-Nov-17,IT Contractual Services,Digital Services & Technology,Methods Digital Ltd,61615,"39,150.00", Information Management Services , Large ,Programme
UK Statistics Authority,Office for National Statistics,28-Nov-17,IT Contractual Services,Digital Services & Technology,Methods Digital Ltd,61615,"18,000.00", Information Management Services , Large ,Programme
UK Statistics Authority,Office for National Statistics,28-Nov-17,IT Contractual Services,Digital Services & Technology,Methods Digital Ltd,61615,"35,730.00", Information Management Services , Large ,Programme
UK Statistics Authority,Office for National Statistics,28-Nov-17,Major Works Over 25K,Business Services & Development,Paramount Office Interiors Ltd,61618,"44,696.68", Major Works Newport, SME ,Programme
UK Statistics Authority,Office for National Statistics,28-Nov-17,Consultancy,Digital Services & Technology,Experienced Management Consultants Limited (XMCS),61621,"95,760.00", Information Managemdent Services, SME ,Programme
Grand Total,,,,,,,"8,330,636.11",,,
,,,,,,,"8,330,636.11",,,
,,,,,,,"8,330,636.11",,,
